fUSD/lending_fUSD_20260517
["ID","MTS","AMOUNT","RATE_DAILY","PERIOD"]
[422466446,1778970637000,-500.0,0.00013688,2]
[422466441,1778970637000,-612.26877207,0.00013688,2]
[422466442,1778970637000,-509.80976235,0.00013688,2]
[422466447,1778970637000,-500.0,0.00013688,2]
[422466443,1778970637000,-500.0,0.00013688,2]
[422466445,1778970637000,-3726.94539564,0.00013688,2]
[422466440,1778970637000,-500.0,0.00013688,2]
[422466444,1778970637000,-500.0,0.00013688,2]
[422466437,1778970637000,-344.9173,0.00013671,2]
[422466438,1778970637000,-921.61679053,0.0001368,2]
[422466435,1778970637000,-1000.0,0.0001367,2]
[422466436,1778970637000,-6013.0,0.00013671,2]
[422466439,1778970637000,-1000.0,0.00013688,2]
[422466505,1778970638000,-500.0,0.00013688,2]
[422466506,1778970638000,-3726.94539564,0.00013688,2]
[422466504,1778970638000,-500.0,0.00013688,2]
[422466503,1778970638000,-3726.94539564,0.00013688,2]
[422466502,1778970638000,-500.0,0.00013688,2]
[422466499,1778970638000,-500.0,0.00013688,2]
[422466498,1778970638000,-3726.94539564,0.00013688,2]
[422466500,1778970638000,-3726.94539564,0.00013688,2]
[422466496,1778970638000,-500.0,0.00013688,2]
[422466495,1778970638000,-3726.94539564,0.00013688,2]
[422466491,1778970638000,-3726.94539564,0.00013688,2]
[422466509,1778970638000,-500.0,0.00013688,2]
[422466497,1778970638000,-500.0,0.00013688,2]
[422466501,1778970638000,-500.0,0.00013688,2]
[422466507,1778970638000,-3726.94539564,0.00013688,2]
[422466515,1778970638000,-3726.94539564,0.00013688,2]
[422466511,1778970638000,-3726.94539564,0.00013688,2]
[422466510,1778970638000,-3726.94539564,0.00013688,2]
[422466512,1778970638000,-3726.94539564,0.00013688,2]
[422466513,1778970638000,-3726.94539564,0.00013688,2]
[422466514,1778970638000,-3726.94539564,0.00013688,2]
[422466516,1778970638000,-3726.94539564,0.00013688,2]
[422466517,1778970638000,-3726.94539564,0.00013688,2]
[422466521,1778970638000,-3726.94539564,0.00013688,2]
[422466518,1778970638000,-500.0,0.00013688,2]
[422466519,1778970638000,-3726.94539564,0.00013688,2]
[422466520,1778970638000,-3726.94539564,0.00013688,2]
[422466522,1778970638000,-3726.94539564,0.00013688,2]
[422466524,1778970638000,-3726.94539564,0.00013688,2]
[422466493,1778970638000,-500.0,0.00013688,2]
[422466508,1778970638000,-500.0,0.00013688,2]
[422466489,1778970638000,-3726.94539564,0.00013688,2]
[422466457,1778970638000,-500.0,0.00013688,2]
[422466487,1778970638000,-500.0,0.00013688,2]
[422466525,1778970638000,-3726.94539564,0.00013688,2]
[422466448,1778970638000,-3726.94539564,0.00013688,2]
[422466449,1778970638000,-500.0,0.00013688,2]
[422466451,1778970638000,-500.0,0.00013688,2]
[422466452,1778970638000,-3726.94539564,0.00013688,2]
[422466453,1778970638000,-500.0,0.00013688,2]
[422466450,1778970638000,-500.0,0.00013688,2]
[422466454,1778970638000,-500.0,0.00013688,2]
[422466456,1778970638000,-500.0,0.00013688,2]
[422466455,1778970638000,-3726.94539564,0.00013688,2]
[422466458,1778970638000,-3726.94539564,0.00013688,2]
[422466459,1778970638000,-500.0,0.00013688,2]
[422466461,1778970638000,-500.0,0.00013688,2]
[422466463,1778970638000,-3726.94539564,0.00013688,2]
[422466465,1778970638000,-500.0,0.00013688,2]
[422466477,1778970638000,-500.0,0.00013688,2]
[422466467,1778970638000,-500.0,0.00013688,2]
[422466485,1778970638000,-500.0,0.00013688,2]
[422466483,1778970638000,-500.0,0.00013688,2]
[422466482,1778970638000,-378.03312924,0.00013688,2]
[422466481,1778970638000,-3726.94539564,0.00013688,2]
[422466479,1778970638000,-500.0,0.00013688,2]
[422466472,1778970638000,-3726.94539564,0.00013688,2]
[422466494,1778970638000,-500.0,0.00013688,2]
[422466476,1778970638000,-500.0,0.00013688,2]
[422466473,1778970638000,-500.0,0.00013688,2]
[422466475,1778970638000,-3726.94539564,0.00013688,2]
[422466471,1778970638000,-500.0,0.00013688,2]
[422466474,1778970638000,-500.0,0.00013688,2]
[422466468,1778970638000,-3726.94539564,0.00013688,2]
[422466478,1778970638000,-3726.94539564,0.00013688,2]
[422466470,1778970638000,-500.0,0.00013688,2]
[422466523,1778970638000,-3726.94539564,0.00013688,2]
[422466570,1778970638000,-277.92,0.00013698,2]
[422466527,1778970638000,-3726.94539564,0.00013688,2]
[422466561,1778970638000,-500.0,0.00013689,2]
[422466563,1778970638000,-500.0,0.00013689,2]
[422466566,1778970638000,-2500000.0,0.0001369,2]
[422466562,1778970638000,-500.0,0.00013689,2]
[422466567,1778970638000,-30831.12264752,0.00013694,2]
[422466568,1778970638000,-1680.0,0.00013696,2]
[422466569,1778970638000,-500.0,0.00013698,2]
[422466578,1778970638000,-500.0,0.00013698,2]
[422466572,1778970638000,-500.0,0.00013698,2]
[422466574,1778970638000,-500.0,0.00013698,2]
[422466573,1778970638000,-500.0,0.00013698,2]
[422466571,1778970638000,-500.0,0.00013698,2]
[422466576,1778970638000,-500.0,0.00013698,2]
[422466579,1778970638000,-500.0,0.00013698,2]
[422466593,1778970638000,-500.0,0.00013698,2]
[422466575,1778970638000,-500.0,0.00013698,2]
[422466577,1778970638000,-500.0,0.00013698,2]
[422466526,1778970638000,-3726.94539564,0.00013688,2]
[422466587,1778970638000,-500.0,0.00013698,2]
[422466590,1778970638000,-500.0,0.00013698,2]
[422466594,1778970638000,-500.0,0.00013698,2]
[422466592,1778970638000,-500.0,0.00013698,2]
[422466588,1778970638000,-500.0,0.00013698,2]
[422466560,1778970638000,-500.0,0.00013689,2]
[422466586,1778970638000,-500.0,0.00013698,2]
[422466585,1778970638000,-500.0,0.00013698,2]
[422466584,1778970638000,-500.0,0.00013698,2]
[422466591,1778970638000,-500.0,0.00013698,2]
[422466582,1778970638000,-500.0,0.00013698,2]
[422466580,1778970638000,-500.0,0.00013698,2]
[422466581,1778970638000,-500.0,0.00013698,2]
[422466583,1778970638000,-500.0,0.00013698,2]
[422466564,1778970638000,-500.0,0.00013689,2]
[422466589,1778970638000,-500.0,0.00013698,2]
[422466556,1778970638000,-500.0,0.00013689,2]
[422466557,1778970638000,-500.0,0.00013689,2]
[422466528,1778970638000,-3726.94539564,0.00013688,2]
[422466530,1778970638000,-3726.94539564,0.00013688,2]
[422466531,1778970638000,-3726.94539564,0.00013688,2]
[422466535,1778970638000,-3726.94539564,0.00013688,2]
[422466532,1778970638000,-3726.94539564,0.00013688,2]
[422466534,1778970638000,-3726.94539564,0.00013688,2]
[422466533,1778970638000,-3726.94539564,0.00013688,2]
[422466539,1778970638000,-3726.94539564,0.00013688,2]
[422466537,1778970638000,-3726.94539564,0.00013688,2]
[422466536,1778970638000,-3726.94539564,0.00013688,2]
[422466538,1778970638000,-175.71765328,0.00013688,2]
[422466542,1778970638000,-3726.94539564,0.00013688,2]
[422466541,1778970638000,-3726.94539564,0.00013688,2]
[422466540,1778970638000,-3726.94539564,0.00013688,2]
[422466529,1778970638000,-3726.94539564,0.00013688,2]
[422466545,1778970638000,-500.0,0.00013689,2]
[422466547,1778970638000,-381.77818691,0.00013689,2]
[422466559,1778970638000,-500.0,0.00013689,2]
[422466558,1778970638000,-500.0,0.00013689,2]
[422466555,1778970638000,-500.0,0.00013689,2]
[422466553,1778970638000,-500.0,0.00013689,2]
[422466554,1778970638000,-500.0,0.00013689,2]
[422466551,1778970638000,-500.0,0.00013689,2]
[422466565,1778970638000,-344.64624768,0.00013689,2]
[422466548,1778970638000,-500.0,0.00013689,2]
[422466550,1778970638000,-500.0,0.00013689,2]
[422466549,1778970638000,-500.0,0.00013689,2]
[422466546,1778970638000,-500.0,0.00013689,2]
[422466543,1778970638000,-3726.94539564,0.00013688,2]
[422466552,1778970638000,-500.0,0.00013689,2]
[422466544,1778970638000,-3726.94539564,0.00013688,2]
[422466634,1778970639000,-500.0,0.00014176,2]
[422466639,1778970639000,-500.0,0.00014176,2]
[422466636,1778970639000,-500.0,0.00014176,2]
[422466633,1778970639000,-500.0,0.00014176,2]
[422466638,1778970639000,-500.0,0.00014176,2]
[422466628,1778970639000,-777.0,0.00014077,2]
[422466635,1778970639000,-500.0,0.00014176,2]
[422466629,1778970639000,-855.28,0.00014137,2]
[422466631,1778970639000,-500.0,0.00014176,2]
[422466637,1778970639000,-500.0,0.00014176,2]
[422466626,1778970639000,-285.81920656,0.00014076,2]
[422466632,1778970639000,-500.0,0.00014176,2]
[422466624,1778970639000,-500.0,0.00013963,2]
[422466648,1778970639000,-500.0,0.00014176,2]
[422466641,1778970639000,-500.0,0.00014176,2]
[422466642,1778970639000,-500.0,0.00014176,2]
[422466643,1778970639000,-500.0,0.00014176,2]
[422466644,1778970639000,-500.0,0.00014176,2]
[422466646,1778970639000,-500.0,0.00014176,2]
[422466647,1778970639000,-500.0,0.00014176,2]
[422466645,1778970639000,-500.0,0.00014176,2]
[422466649,1778970639000,-500.0,0.00014237,2]
[422466650,1778970639000,-166.66,0.00014257,2]
[422466652,1778970639000,-278.79,0.00014385,2]
[422466651,1778970639000,-394.1,0.00014385,2]
[422466653,1778970639000,-855.28,0.00014473,2]
[422466625,1778970639000,-14845.96112735,0.00014067,2]
[422466655,1778970639000,-500.0,0.00014511,2]
[422466640,1778970639000,-500.0,0.00014176,2]
[422466630,1778970639000,-15661.87100579,0.00014154,2]
[422466608,1778970639000,-500.0,0.00013698,2]
[422466622,1778970639000,-166.66,0.00013829,2]
[422466654,1778970639000,-450.76,0.00014508,2]
[422466604,1778970639000,-500.0,0.00013698,2]
[422466597,1778970639000,-500.0,0.00013698,2]
[422466606,1778970639000,-500.0,0.00013698,2]
[422466603,1778970639000,-500.0,0.00013698,2]
[422466605,1778970639000,-500.0,0.00013698,2]
[422466599,1778970639000,-500.0,0.00013698,2]
[422466598,1778970639000,-500.0,0.00013698,2]
[422466595,1778970639000,-500.0,0.00013698,2]
[422466596,1778970639000,-500.0,0.00013698,2]
[422466600,1778970639000,-500.0,0.00013698,2]
[422466607,1778970639000,-500.0,0.00013698,2]
[422466602,1778970639000,-500.0,0.00013698,2]
[422466627,1778970639000,-444.0,0.00014077,2]
[422466601,1778970639000,-500.0,0.00013698,2]
[422466610,1778970639000,-500.0,0.00013698,2]
[422466611,1778970639000,-500.0,0.00013698,2]
[422466613,1778970639000,-9999.99,0.00013699,2]
[422466612,1778970639000,-1604.24,0.00013699,2]
[422466615,1778970639000,-4999.99,0.00013699,2]
[422466614,1778970639000,-150.99,0.00013699,2]
[422466617,1778970639000,-546.02,0.00013699,2]
[422466616,1778970639000,-200.0,0.00013699,2]
[422466620,1778970639000,-855.28,0.000138,2]
[422466619,1778970639000,-1147.32,0.000137,2]
[422466618,1778970639000,-166.68,0.00013699,2]
[422466621,1778970639000,-210.73,0.0001381,2]
[422466623,1778970639000,-2000.0,0.0001395,2]
[422466609,1778970639000,-500.0,0.00013698,2]
[422466656,1778970639000,-210.73,0.00014537,2]
[422466660,1778970639000,-500.0,0.00014709,2]
[422466658,1778970639000,-166.66,0.00014685,2]
[422466693,1778970639000,-500.0,0.00014709,2]
[422466692,1778970639000,-619.09086971,0.00014709,2]
[422466695,1778970639000,-500.0,0.00014709,2]
[422466694,1778970639000,-500.0,0.00014709,2]
[422466696,1778970639000,-507.15627863,0.00014709,2]
[422466698,1778970639000,-500.0,0.00014709,2]
[422466697,1778970639000,-500.0,0.00014709,2]
[422466704,1778970639000,-500.0,0.00014709,2]
[422466706,1778970639000,-500.0,0.00014709,2]
[422466701,1778970639000,-500.0,0.00014709,2]
[422466705,1778970639000,-500.0,0.00014709,2]
[422466703,1778970639000,-500.0,0.00014709,2]
[422466700,1778970639000,-500.0,0.00014709,2]
[422466690,1778970639000,-500.0,0.00014709,2]
[422466702,1778970639000,-500.0,0.00014709,2]
[422466708,1778970639000,-500.0,0.00014746,2]
[422466709,1778970639000,-500.0,0.00014785,2]
[422466710,1778970639000,-624.48704047,0.00014809,2]
[422466711,1778970639000,-500.0,0.00014809,2]
[422466712,1778970639000,-500.0,0.00014809,2]
[422466715,1778970639000,-500.0,0.00014809,2]
[422466718,1778970639000,-855.28,0.0001481,2]
[422466717,1778970639000,-500.0,0.00014809,2]
[422466716,1778970639000,-500.0,0.00014809,2]
[422466713,1778970639000,-500.0,0.00014809,2]
[422466714,1778970639000,-500.0,0.00014809,2]
[422466719,1778970639000,-587.0,0.00014991,2]
[422466657,1778970639000,-500.0,0.00014546,2]
[422466707,1778970639000,-255.0,0.00014709,2]
[422466691,1778970639000,-500.0,0.00014709,2]
[422466699,1778970639000,-500.0,0.00014709,2]
[422466686,1778970639000,-500.0,0.00014709,2]
[422466689,1778970639000,-500.0,0.00014709,2]
[422466661,1778970639000,-500.0,0.00014709,2]
[422466662,1778970639000,-500.0,0.00014709,2]
[422466664,1778970639000,-500.0,0.00014709,2]
[422466667,1778970639000,-500.0,0.00014709,2]
[422466665,1778970639000,-500.0,0.00014709,2]
[422466663,1778970639000,-500.0,0.00014709,2]
[422466666,1778970639000,-500.0,0.00014709,2]
[422466669,1778970639000,-500.0,0.00014709,2]
[422466668,1778970639000,-500.0,0.00014709,2]
[422466671,1778970639000,-500.0,0.00014709,2]
[422466672,1778970639000,-500.0,0.00014709,2]
[422466670,1778970639000,-500.0,0.00014709,2]
[422466673,1778970639000,-500.0,0.00014709,2]
[422466659,1778970639000,-500.0,0.00014697,2]
[422466676,1778970639000,-500.0,0.00014709,2]
[422466674,1778970639000,-500.0,0.00014709,2]
[422466685,1778970639000,-500.0,0.00014709,2]
[422466684,1778970639000,-500.0,0.00014709,2]
[422466688,1778970639000,-500.0,0.00014709,2]
[422466683,1778970639000,-500.0,0.00014709,2]
[422466682,1778970639000,-500.0,0.00014709,2]
[422466687,1778970639000,-500.0,0.00014709,2]
[422466680,1778970639000,-500.0,0.00014709,2]
[422466679,1778970639000,-500.0,0.00014709,2]
[422466677,1778970639000,-500.0,0.00014709,2]
[422466678,1778970639000,-500.0,0.00014709,2]
[422466675,1778970639000,-500.0,0.00014709,2]
[422466681,1778970639000,-500.0,0.00014709,2]
[422466766,1778970640000,-736.0,0.00017224,2]
[422466763,1778970640000,-210.73,0.00016718,2]
[422466762,1778970640000,-3292.0,0.00016572,2]
[422466761,1778970640000,-823.0,0.00016449,2]
[422466754,1778970640000,-433.0,0.00015919,2]
[422466759,1778970640000,-914.9,0.00016438,2]
[422466757,1778970640000,-9999.99,0.00016116,2]
[422466758,1778970640000,-450.76,0.0001612,2]
[422466755,1778970640000,-210.73,0.00015991,2]
[422466756,1778970640000,-158.04817434,0.00016,2]
[422466752,1778970640000,-151.0,0.00015853,2]
[422466767,1778970640000,-210.73,0.00017445,2]
[422466760,1778970640000,-690.52,0.00016438,2]
[422466765,1778970640000,-2000.0,0.0001705,2]
[422466768,1778970640000,-450.76,0.00017732,2]
[422466764,1778970640000,-239.64,0.00016926,2]
[422466769,1778970640000,-500.0,0.00017805,2]
[422466775,1778970640000,-210.73,0.00018171,2]
[422466770,1778970640000,-500.0,0.00017805,2]
[422466771,1778970640000,-500.0,0.00017805,2]
[422466777,1778970640000,-4609.0,0.00018229,2]
[422466779,1778970640000,-928.94463276,0.00018312,2]
[422466788,1778970640000,-1549.14776781,0.00019,2]
[422466789,1778970640000,-3000.0,0.00019178,2]
[422466785,1778970640000,-2000.0,0.000186,2]
[422466787,1778970640000,-210.73,0.00018898,2]
[422466781,1778970640000,-89528.68,0.00018356,2]
[422466750,1778970640000,-151.0,0.00015853,2]
[422466773,1778970640000,-1152.0,0.0001805,2]
[422466753,1778970640000,-151.0,0.00015853,2]
[422466722,1778970640000,-500.0,0.00014999,2]
[422466749,1778970640000,-151.0,0.00015853,2]
[422466783,1778970640000,-914.9,0.0001841,2]
[422466720,1778970640000,-500.0,0.00014999,2]
[422466721,1778970640000,-500.0,0.00014999,2]
[422466723,1778970640000,-500.0,0.00014999,2]
[422466724,1778970640000,-357.35799664,0.00014999,2]
[422466725,1778970640000,-500.0,0.00015059,2]
[422466726,1778970640000,-2351.0,0.00015066,2]
[422466727,1778970640000,-690.52,0.00015068,2]
[422466728,1778970640000,-166.66,0.00015113,2]
[422466732,1778970640000,-2000.0,0.000155,2]
[422466731,1778970640000,-500.0,0.00015479,2]
[422466733,1778970640000,-150.0,0.00015603,2]
[422466729,1778970640000,-210.73,0.00015264,2]
[422466730,1778970640000,-500.0,0.00015333,2]
[422466734,1778970640000,-151.0,0.00015853,2]
[422466735,1778970640000,-151.0,0.00015853,2]
[422466737,1778970640000,-151.0,0.00015853,2]
[422466736,1778970640000,-151.0,0.00015853,2]
[422466738,1778970640000,-151.0,0.00015853,2]
[422466739,1778970640000,-151.0,0.00015853,2]
[422466740,1778970640000,-151.0,0.00015853,2]
[422466745,1778970640000,-151.0,0.00015853,2]
[422466741,1778970640000,-151.0,0.00015853,2]
[422466742,1778970640000,-151.0,0.00015853,2]
[422466744,1778970640000,-151.0,0.00015853,2]
[422466746,1778970640000,-151.0,0.00015853,2]
[422466743,1778970640000,-151.0,0.00015853,2]
[422466748,1778970640000,-151.0,0.00015853,2]
[422466747,1778970640000,-151.0,0.00015853,2]
[422466751,1778970640000,-151.0,0.00015853,2]
[422466784,1778970640000,-1227.65,0.00018567,2]
[422466792,1778970640000,-150.43976418,0.000196,2]
[422466791,1778970640000,-450.76,0.00019344,2]
[422466822,1778970640000,-691.0,0.00021,2]
[422466825,1778970640000,-159.62060025,0.00021,2]
[422466827,1778970640000,-10000.0,0.00021,2]
[422466828,1778970640000,-313.0,0.00021,2]
[422466826,1778970640000,-418.0,0.00021,2]
[422466831,1778970640000,-151.0,0.00021,2]
[422466830,1778970640000,-206.0,0.00021,2]
[422466833,1778970640000,-462.3,0.00021273,2]
[422466832,1778970640000,-2702.19,0.00021273,2]
[422466836,1778970640000,-239.64,0.00021364,2]
[422466835,1778970640000,-3397.24,0.00021273,2]
[422466837,1778970640000,-6463.45,0.0002137,2]
[422466838,1778970640000,-1147.32,0.000216,2]
[422466824,1778970640000,-164.0,0.00021,2]
[422466839,1778970640000,-2258.0,0.00021732,2]
[422466840,1778970640000,-3109.0,0.00021818,2]
[422466834,1778970640000,-1675.19,0.00021273,2]
[422466841,1778970640000,-165.19732034,0.000219,2]
[422466843,1778970640000,-208.44072055,0.00021911,2]
[422466845,1778970640000,-5000.0,0.00021918,2]
[422466844,1778970640000,-289.0529305,0.00021918,3]
[422466853,1778970640000,-418.0,0.00022,2]
[422466851,1778970640000,-274.0,0.00022,2]
[422466849,1778970640000,-153.0,0.00022,2]
[422466847,1778970640000,-1519.03,0.00021918,2]
[422466846,1778970640000,-3074.97,0.00021918,2]
[422466850,1778970640000,-691.0,0.00022,2]
[422466848,1778970640000,-212.0,0.00022,2]
[422466842,1778970640000,-215.03962261,0.00021911,2]
[422466821,1778970640000,-151.0,0.00021,2]
[422466852,1778970640000,-164.0,0.00022,2]
[422466823,1778970640000,-274.0,0.00021,2]
[422466818,1778970640000,-1350.0,0.00020705,7]
[422466786,1778970640000,-1252.0,0.00018637,2]
[422466793,1778970640000,-210.73,0.00019625,2]
[422466795,1778970640000,-212.0,0.0002,2]
[422466797,1778970640000,-691.0,0.0002,2]
[422466796,1778970640000,-151.0,0.0002,2]
[422466799,1778970640000,-164.0,0.0002,2]
[422466801,1778970640000,-418.0,0.0002,2]
[422466794,1778970640000,-1613.0,0.00019805,2]
[422466798,1778970640000,-274.0,0.0002,2]
[422466802,1778970640000,-206.0,0.0002,2]
[422466800,1778970640000,-155.0,0.0002,2]
[422466803,1778970640000,-151.0,0.0002,2]
[422466804,1778970640000,-17840.19,0.0002,2]
[422466805,1778970640000,-6453.0,0.00020052,2]
[422466790,1778970640000,-18345.59,0.00019178,2]
[422466814,1778970640000,-3842.83,0.00020548,2]
[422466812,1778970640000,-3842.85,0.00020548,2]
[422466829,1778970640000,-525.17782738,0.00021,2]
[422466820,1778970640000,-212.0,0.00021,2]
[422466819,1778970640000,-1000.0,0.00020803,7]
[422466817,1778970640000,-950.0,0.00020705,2]
[422466809,1778970640000,-215.0,0.00020232,2]
[422466811,1778970640000,-3842.85,0.00020548,2]
[422466806,1778970640000,-2129.0,0.0002016,2]
[422466810,1778970640000,-914.9,0.00020381,2]
[422466813,1778970640000,-3842.85,0.00020548,2]
[422466808,1778970640000,-150.0,0.00020232,2]
[422466815,1778970640000,-19032.04,0.00020548,2]
[422466807,1778970640000,-279.0,0.00020232,2]
[422466816,1778970640000,-2500.0,0.00020705,2]
[422466894,1778970641000,-206.0,0.00024,2]
[422466897,1778970641000,-477.8,0.00024079,2]
[422466896,1778970641000,-477.8,0.00024002,2]
[422466895,1778970641000,-151.13147767,0.00024,2]
[422466893,1778970641000,-418.0,0.00024,2]
[422466887,1778970641000,-477.8,0.00023924,2]
[422466888,1778970641000,-526.33013657,0.00023973,2]
[422466891,1778970641000,-274.0,0.00024,2]
[422466892,1778970641000,-164.0,0.00024,2]
[422466889,1778970641000,-212.0,0.00024,2]
[422466890,1778970641000,-691.0,0.00024,2]
[422466902,1778970641000,-477.8,0.00024313,2]
[422466905,1778970641000,-241.09524551,0.00024384,2]
[422466898,1778970641000,-477.8,0.00024157,2]
[422466901,1778970641000,-1147.32,0.000243,7]
[422466900,1778970641000,-9476.0,0.00024263,2]
[422466903,1778970641000,-914.9,0.00024324,2]
[422466899,1778970641000,-477.8,0.00024235,2]
[422466883,1778970641000,-477.8,0.00023768,2]
[422466906,1778970641000,-150.0,0.00024384,2]
[422466907,1778970641000,-150.0,0.00024384,2]
[422466912,1778970641000,-500.0,0.00024384,2]
[422466911,1778970641000,-176.00420823,0.00024384,2]
[422466909,1778970641000,-274.34450256,0.00024384,2]
[422466910,1778970641000,-150.0,0.00024384,2]
[422466914,1778970641000,-500.0,0.00024384,2]
[422466908,1778970641000,-150.0,0.00024384,2]
[422466904,1778970641000,-150.0,0.00024384,2]
[422466886,1778970641000,-3115.0,0.00023846,2]
[422466874,1778970641000,-928.94463276,0.00023029,2]
[422466884,1778970641000,-500.0,0.00023794,2]
[422466913,1778970641000,-500.0,0.00024384,2]
[422466855,1778970641000,-151.0,0.00022,2]
[422466854,1778970641000,-206.0,0.00022,2]
[422466856,1778970641000,-9035.0,0.00022058,2]
[422466864,1778970641000,-526.33013657,0.00022603,2]
[422466857,1778970641000,-165.19732034,0.000221,2]
[422466863,1778970641000,-1573.07,0.00022466,2]
[422466867,1778970641000,-363.0,0.00023,30]
[422466859,1778970641000,-165.19732034,0.000224,2]
[422466860,1778970641000,-166.52637945,0.00022407,2]
[422466858,1778970641000,-914.9,0.00022353,2]
[422466865,1778970641000,-212.0,0.00023,2]
[422466861,1778970641000,-166.52637944,0.00022407,2]
[422466885,1778970641000,-477.8,0.00023846,2]
[422466866,1778970641000,-691.0,0.00023,2]
[422466868,1778970641000,-274.0,0.00023,2]
[422466869,1778970641000,-164.0,0.00023,2]
[422466873,1778970641000,-151.0,0.00023,2]
[422466875,1778970641000,-526.33013657,0.00023288,2]
[422466871,1778970641000,-2917.0,0.00023,2]
[422466879,1778970641000,-18987.01441539,0.00023558,21]
[422466876,1778970641000,-477.8,0.00023378,2]
[422466872,1778970641000,-206.0,0.00023,2]
[422466878,1778970641000,-477.8,0.00023534,2]
[422466877,1778970641000,-477.8,0.00023456,2]
[422466881,1778970641000,-477.8,0.0002369,2]
[422466880,1778970641000,-477.8,0.00023612,2]
[422466882,1778970641000,-1519.03,0.00023744,2]
[422466862,1778970641000,-1755.33,0.00022466,2]
[422466870,1778970641000,-418.0,0.00023,2]
[422466915,1778970641000,-500.0,0.00024384,2]
[422466917,1778970641000,-500.0,0.00024384,2]
[422466946,1778970641000,-500.0,0.00024384,2]
[422466943,1778970641000,-588.0,0.00024384,2]
[422466952,1778970641000,-588.0,0.00024384,2]
[422466948,1778970641000,-500.0,0.00024384,2]
[422466954,1778970641000,-500.0,0.00024384,2]
[422466955,1778970641000,-500.0,0.00024384,2]
[422466956,1778970641000,-500.0,0.00024384,2]
[422466959,1778970641000,-500.0,0.00024384,2]
[422466958,1778970641000,-500.0,0.00024384,2]
[422466957,1778970641000,-500.0,0.00024384,2]
[422466966,1778970641000,-150.0,0.00024384,2]
[422466965,1778970641000,-386.063269,0.00024384,2]
[422466961,1778970641000,-500.0,0.00024384,2]
[422466960,1778970641000,-500.0,0.00024384,2]
[422466964,1778970641000,-637.25809725,0.00024384,2]
[422466963,1778970641000,-500.0,0.00024384,2]
[422466967,1778970641000,-150.0,0.00024384,2]
[422466969,1778970641000,-213.52501256,0.00024384,2]
[422466968,1778970641000,-588.0,0.00024384,2]
[422466972,1778970641000,-250.0,0.00024384,2]
[422466970,1778970641000,-150.0,0.00024384,2]
[422466971,1778970641000,-166.38904159,0.00024384,2]
[422466973,1778970641000,-250.0,0.00024384,2]
[422466976,1778970641000,-150.0,0.00024384,2]
[422466974,1778970641000,-250.0,0.00024384,2]
[422466975,1778970641000,-261.82652302,0.00024384,2]
[422466916,1778970641000,-553.49084739,0.00024384,2]
[422466951,1778970641000,-500.0,0.00024384,2]
[422466949,1778970641000,-500.0,0.00024384,2]
[422466962,1778970641000,-500.0,0.00024384,2]
[422466953,1778970641000,-500.0,0.00024384,2]
[422466918,1778970641000,-242.6683652,0.00024384,2]
[422466947,1778970641000,-500.0,0.00024384,2]
[422466923,1778970641000,-588.0,0.00024384,2]
[422466921,1778970641000,-150.0,0.00024384,2]